Department,Entity,Payment date,Transaction Number,Invoice Amount,Supplier ,Account Description
FCO,FCO,13/11/2014,"4,863,847","30,000.00",SOLACE ENTERPRISES,Programme Spend (Oracle Projects Control Account)
FCO,FCO,17/11/2014,"4,865,643","37,905.65",ARTICLE 19,Programme Spend (Oracle Projects Control Account)
FCO,FCO,17/11/2014,"4,865,665","225,168.00",CAPGEMINI UK PLC,Assets Under Construction (Oracle PA Control Account)
FCO,FCO,17/11/2014,"4,866,954","-738,251.00",COMPUTACENTER UK LTD,Estates Management Services
FCO,FCO,18/11/2014,"4,866,664","36,431.00",GUANGDONG ENVIRONMENT EXCHANGE,Programme Spend (Oracle Projects Control Account)
FCO,FCO,18/11/2014,"4,864,363","26,630.98",LANKA UNITES,Programme Spend (Oracle Projects Control Account)
FCO,FCO,18/11/2014,"4,864,319","184,549.50",THE ASIA FOUNDATION,Programme Spend (Oracle Projects Control Account)
FCO,FCO,19/11/2014,"4,868,481","33,115.00",AXIOM INTERNATIONAL LTD,Programme Spend (Oracle Projects Control Account)
FCO,FCO,19/11/2014,"4,867,490","50,000.00",CAMBRIDGE CONSULTANTS,Assets Under Construction (Oracle PA Control Account)
FCO,FCO,19/11/2014,"4,868,503","225,168.00",CAPGEMINI UK PLC,Assets Under Construction (Oracle PA Control Account)
FCO,FCO,19/11/2014,"4,865,594","-200,000.00",DANISH REFUGEE COUNCIL,Programme Spend (Oracle Projects Control Account)
FCO,FCO,19/11/2014,"4,866,305","267,090.30",DEFENCE BUSINESS SERVICES FINANCE,Mod Guarding Services Residential
FCO,FCO,19/11/2014,"4,864,770","140,119.10",FCO SERVICES,IT/IS Consultancy
FCO,FCO,19/11/2014,"4,865,669","49,002.98",FCO SERVICES,Assets Under Construction (Oracle PA Control Account)
FCO,FCO,19/11/2014,"4,865,783","26,558.18",FCO SERVICES,Security: Works Non-Residential
FCO,FCO,19/11/2014,"4,866,309","27,932.87",HOUSE OF COMMONS,Secondments
FCO,FCO,19/11/2014,"4,865,912","29,020.00",INSTITUT FRANCAIS,Language Tuition: Essential
FCO,FCO,19/11/2014,"4,867,083","100,856.20",LANGUAGE SERVICES DIRECT,Language Tuition: Essential
FCO,FCO,19/11/2014,"4,867,069","49,369.02",LANGUAGE SERVICES DIRECT,Language Tuition: Essential
FCO,FCO,19/11/2014,"4,868,402","32,365.17",MEDIA DIVERSITY INSTITUTE,Programme Spend (Oracle Projects Control Account)
FCO,FCO,19/11/2014,"4,867,528","67,857.73",N A MOVING SERVICES LTD,Heavy Baggage
FCO,FCO,19/11/2014,"4,867,546","48,578.45",N A MOVING SERVICES LTD,Heavy Baggage
FCO,FCO,19/11/2014,"4,867,512","30,303.60",N A MOVING SERVICES LTD,Heavy Baggage
FCO,FCO,19/11/2014,"4,864,647","91,718.00",PEACEFUL CHANGE INITIATIVE,Programme Spend (Oracle Projects Control Account)
FCO,FCO,19/11/2014,"4,865,494","126,131.00",UNITED NATIONS POPULATION FUND,Programme Spend (Oracle Projects Control Account)
FCO,FCO,20/11/2014,"4,865,918","159,867.00",CONTROL RISKS GROUP,UK Mobile Guarding Contract overseas
FCO,FCO,20/11/2014,"4,868,585","857,530.00",GLOBAL RADIODATA COMMUNICATIONS LTD,Programme Spend (Oracle Projects Control Account)
FCO,FCO,20/11/2014,"4,866,557","140,885.20",KELLOGG BROWN AND ROOT,Estates Management Services
FCO,FCO,20/11/2014,"4,869,400","25,485.25",MANCHESTER CENTRAL CONVENTION COMPLEX,Programme Spend (Oracle Projects Control Account)
FCO,FCO,20/11/2014,"4,868,383","33,219.00",OPEN KNOWLEDGE FOUNDATION,Programme Spend (Oracle Projects Control Account)
FCO,FCO,20/11/2014,"4,868,447","705,000.00",RISK ADVISORY GROUP PLC,Programme Spend (Oracle Projects Control Account)
FCO,FCO,21/11/2014,"4,870,705","107,668.90",BMW AG,Vehicle Hire
FCO,FCO,21/11/2014,"4,870,552","552,407.00",INTERSERVE FM LTD,
FCO,FCO,21/11/2014,"4,870,585","60,056.49",INTERSERVE FM LTD,
FCO,FCO,21/11/2014,"4,870,423","53,300.12",INTERSERVE FM LTD,
FCO,FCO,21/11/2014,"4,870,422","48,199.53",INTERSERVE FM LTD,FM Interserve BES Maintenance
FCO,FCO,21/11/2014,"4,870,450","46,241.51",INTERSERVE FM LTD,
FCO,FCO,21/11/2014,"4,870,553","37,341.74",INTERSERVE FM LTD,Energy Saving Measures
FCO,FCO,21/11/2014,"4,870,521","33,693.34",INTERSERVE FM LTD,Construction Project more than £10k
FCO,FCO,21/11/2014,"4,870,589","30,394.71",INTERSERVE FM LTD,
FCO,FCO,21/11/2014,"4,870,576","29,774.37",INTERSERVE FM LTD,
FCO,FCO,21/11/2014,"4,870,588","26,516.10",INTERSERVE FM LTD,
FCO,FCO,21/11/2014,"4,870,474","26,124.41",INTERSERVE FM LTD,
FCO,FCO,24/11/2014,"4,872,205","110,459.00",CAPITA PROPERTY AND INFRASTRUCTURE LTD,Assets Under Construction (Oracle PA Control Account)
FCO,FCO,24/11/2014,"4,868,972","32,024.55",CONTROL RISKS SERVICES WEST AFRICA LIMITED,Local Guards
FCO,FCO,24/11/2014,"4,870,726","32,024.55",CONTROL RISKS SERVICES WEST AFRICA LIMITED,Local Guards
FCO,FCO,24/11/2014,"4,870,730","32,024.55",CONTROL RISKS SERVICES WEST AFRICA LIMITED,Local Guards
FCO,FCO,24/11/2014,"4,865,684","123,848.00",CROWN AGENTS FINANCIAL SERVICES LTD,Programme Spend (Oracle Projects Control Account)
FCO,FCO,24/11/2014,"4,866,541","150,980.70",FUJITSU SERVICES LIMITED,IT/IS Consultancy
FCO,FCO,24/11/2014,"4,866,532","50,326.89",FUJITSU SERVICES LIMITED,IT/IS Consultancy
FCO,FCO,24/11/2014,"4,872,128","965,514.90",G4S RISK MANAGEMENT LTD FORMALLY ARMOURGROUP SERVICES LTD,UK Guarding Contracts Overseas
FCO,FCO,24/11/2014,"4,872,118","630,540.80",G4S RISK MANAGEMENT LTD FORMALLY ARMOURGROUP SERVICES LTD,UK Guarding Contracts Overseas
FCO,FCO,24/11/2014,"4,872,091","47,679.76",GLOBAL PARTNERS AND ASSOCIATES,Programme Spend (Oracle Projects Control Account)
FCO,FCO,24/11/2014,"4,870,642","121,909.00",ISS FACILITY SERVICES LTD FCO OP,
FCO,FCO,24/11/2014,"4,870,655","98,232.65",ISS FACILITY SERVICES LTD FCO OP,
FCO,FCO,24/11/2014,"4,870,653","96,341.04",ISS FACILITY SERVICES LTD FCO OP,
FCO,FCO,24/11/2014,"4,870,638","86,821.38",ISS FACILITY SERVICES LTD FCO OP,
FCO,FCO,24/11/2014,"4,870,634","69,422.77",ISS FACILITY SERVICES LTD FCO OP,
FCO,FCO,24/11/2014,"4,870,623","59,272.31",ISS FACILITY SERVICES LTD FCO OP,
FCO,FCO,24/11/2014,"4,870,610","59,122.36",ISS FACILITY SERVICES LTD FCO OP,
FCO,FCO,24/11/2014,"4,870,619","50,589.07",ISS FACILITY SERVICES LTD FCO OP,"Purchase of Furniture, Fittings and Domestic Appliances"
FCO,FCO,24/11/2014,"4,870,658","43,155.70",ISS FACILITY SERVICES LTD FCO OP,
FCO,FCO,24/11/2014,"4,870,641","40,917.78",ISS FACILITY SERVICES LTD FCO OP,
FCO,FCO,24/11/2014,"4,870,656","39,824.28",ISS FACILITY SERVICES LTD FCO OP,
FCO,FCO,24/11/2014,"4,870,632","31,739.38",ISS FACILITY SERVICES LTD FCO OP,
FCO,FCO,24/11/2014,"4,870,652","29,576.71",ISS FACILITY SERVICES LTD FCO OP,
FCO,FCO,24/11/2014,"4,870,645","27,072.81",ISS FACILITY SERVICES LTD FCO OP,
FCO,FCO,24/11/2014,"4,872,218","25,019.31",MORSON HUMAN RESOURCES LTD,Residential Property Services
FCO,FCO,24/11/2014,"4,872,362","33,467.01",NORTHERN IRELAND CO OPERATION OVERSEAS NI CO LIMITED,Programme Spend (Oracle Projects Control Account)
FCO,FCO,24/11/2014,"4,872,156","30,000.00",ORGANISATION FOR ECONOMIC CO OPERATION AND DEVELOPMENT OECD,Programme Spend (Oracle Projects Control Account)
FCO,FCO,24/11/2014,"4,872,040","446,690.20",VODAFONE LTD CABLE AND WIRELESS UK,
FCO,FCO,25/11/2014,"4,873,398","34,192.40",AEGIS DEFENCE SERVICES LTD,Local Guards
FCO,FCO,25/11/2014,"4,872,974","1,324,416.00",ANIKA ELECTRIC,
FCO,FCO,25/11/2014,"4,868,554","143,508.30",COMITATO INTERNAZIONALE PER LO SVILUPPO DEI POPOLI CISP,Programme Spend (Oracle Projects Control Account)
FCO,FCO,25/11/2014,"4,873,104","92,885.01",DIPLOMAT FREIGHT SERVICES LTD(DFS),Programme Spend (Oracle Projects Control Account)
FCO,FCO,25/11/2014,"4,873,355","274,613.00",INTERNATIONAL REPUBLICAN INSTITUTE,Programme Spend (Oracle Projects Control Account)
FCO,FCO,25/11/2014,"4,873,477","197,918.60",LONDON ENERGY,Electricity Non-Residential
FCO,FCO,25/11/2014,"4,872,361","309,328.80",MINES ADVISORY GROUP,Programme Spend (Oracle Projects Control Account)
FCO,FCO,25/11/2014,"4,873,180","144,666.50",NATIONAL DEMOCRATIC INSTITUTE FOR INTERNATIONAL AFFAIRS,Programme Spend (Oracle Projects Control Account)
FCO,FCO,25/11/2014,"4,873,185","113,644.80",NATIONAL DEMOCRATIC INSTITUTE FOR INTERNATIONAL AFFAIRS,Programme Spend (Oracle Projects Control Account)
FCO,FCO,25/11/2014,"4,873,400","37,050.00",NEWS UK,Newspapers
FCO,FCO,25/11/2014,"4,873,326","27,418.30",ROYAL WELSH COLLEGE OF MUSIC AND DRAMA LTD,Inward visits to the UK and UK Conferences
FCO,FCO,25/11/2014,"4,872,382","761,286.00",S MACNEILLIE & SON LTD,Assets Under Construction (Oracle PA Control Account)
FCO,FCO,25/11/2014,"4,873,215","-386,739.60",WESTMINSTER FOUNDATION FOR DEMOCRACY,Programme Spend (Oracle Projects Control Account)
FCO,FCO,26/11/2014,"4,875,144","106,931.10",BBC MEDIA ACTION,Programme Spend (Oracle Projects Control Account)
FCO,FCO,26/11/2014,"4,875,184","50,439.00",CONSOLIDATED PR LTD,Public Relations
FCO,FCO,26/11/2014,"4,875,417","28,500.00",ECA INTERNATIONAL,Cost of Living Addition (COLA)
FCO,FCO,26/11/2014,"4,875,420","28,430.00",ECA INTERNATIONAL,Cost of Living Addition (COLA)
FCO,FCO,26/11/2014,"4,872,061","38,491.54",Elixir Solutions,Programme Spend (Oracle Projects Control Account)
FCO,FCO,26/11/2014,"4,871,968","43,115.07",HOTELLINE FOR TOURISTIC INVESTMENT LTD,Rental Payments - residential
FCO,FCO,26/11/2014,"4,875,866","26,420.02",SECURITAS SAC,Local Guards
FCO,FCO,26/11/2014,"4,875,627","27,785.70",SFW LIMITED,Assets Under Construction (Oracle PA Control Account)
FCO,FCO,28/11/2014,"4,875,235","916,014.00",BOUYGUES CONSTRUCTION NIGERIA LIMITED,Assets Under Construction (Oracle PA Control Account)
FCO,FCO,28/11/2014,"4,877,241","30,000.00",BRITISH MUSEUM,Programme Spend (Oracle Projects Control Account)
FCO,FCO,28/11/2014,"4,869,479","43,889.24",CEFAS (THE CENTRE FOR ENVIRONMENT FISHERIES + AQUACULTURE SCIENCE),Programme Spend (Oracle Projects Control Account)
FCO,FCO,28/11/2014,"4,875,189","38,296.00",COMPUTACENTER UK LTD,Estates Management Services
FCO,FCO,28/11/2014,"4,877,097","52,243.71",CONTROL RISKS GROUP,Local Guards
FCO,FCO,28/11/2014,"4,877,115","51,197.09",CONTROL RISKS GROUP,Local Guards
FCO,FCO,28/11/2014,"4,877,283","153,391.00",DANISH REFUGEE COUNCIL,Programme Spend (Oracle Projects Control Account)
FCO,FCO,28/11/2014,"4,878,844","26,085.00",DANISH REFUGEE COUNCIL,Programme Spend (Oracle Projects Control Account)
FCO,FCO,28/11/2014,"4,875,707","28,938.85",DEFENCE BUSINESS SERVICES FINANCE,Programme Spend (Oracle Projects Control Account)
FCO,FCO,28/11/2014,"4,873,707","944,175.00",FCO SERVICES,Residential Property Services
FCO,FCO,28/11/2014,"4,878,830","51,867.28",FCO SERVICES,Air Freight Dip Bags - Freight & Clearance Charges
FCO,FCO,28/11/2014,"4,869,144","41,056.58",FCO SERVICES,Assets Under Construction (Oracle PA Control Account)
FCO,FCO,28/11/2014,"4,873,423","26,565.42",FCO SERVICES,Air Freight Dip Bags - Freight & Clearance Charges
FCO,FCO,28/11/2014,"4,865,382","331,445.90",G4S SECURE SOLUTIONS (UK),Manned Guarding Services
FCO,FCO,28/11/2014,"4,877,209","37,802.00",MANCHESTER CENTRAL CONVENTION COMPLEX,Programme Spend (Oracle Projects Control Account)
FCO,FCO,28/11/2014,"4,878,362","42,462.57",PROJECT HOUGOUMONT LTD,Programme Spend (Oracle Projects Control Account)
FCO,FCO,28/11/2014,"4,878,364","32,744.82",PROJECT HOUGOUMONT LTD,Programme Spend (Oracle Projects Control Account)
FCO,FCO,28/11/2014,"4,878,360","29,242.21",PROJECT HOUGOUMONT LTD,Programme Spend (Oracle Projects Control Account)
FCO,FCO,28/11/2014,"4,873,600","46,442.50",TEAM LEYLAND INTERNATIONAL LTD,Assets Under Construction (Oracle PA Control Account)
FCO,FCO,28/11/2014,"4,877,280","33,665.00",THE HALO TRUST,Programme Spend (Oracle Projects Control Account)
FCO,FCO,28/11/2014,"4,870,893","33,341.38",WORLD RESOURCES INSTITUTE,Programme Spend (Oracle Projects Control Account)
FCO,FCO,01/12/2014,"4,880,561","25,108.56",CENTER FOR SOCIAL RESEARCH ANALITIKA,Programme Spend (Oracle Projects Control Account)
FCO,FCO,01/12/2014,"4,879,964","78,801.62",CONTROL RISKS GROUP,Local Guards
FCO,FCO,01/12/2014,"4,879,795","51,657.32",CONTROL RISKS GROUP,Local Guards
FCO,FCO,01/12/2014,"4,879,802","50,956.40",CONTROL RISKS GROUP,Local Guards
FCO,FCO,01/12/2014,"4,879,837","29,764.00",KOIZA INTERNATIONAL LTD,"Purchase of Furniture, Fittings and Domestic Appliances"
FCO,FCO,01/12/2014,"4,878,338","82,539.84",MANA AUTOMOTIVE S A L,Programme Spend (Oracle Projects Control Account)
FCO,FCO,01/12/2014,"4,879,814","157,136.00",MERCY CORPS,Programme Spend (Oracle Projects Control Account)
FCO,FCO,01/12/2014,"4,867,554","42,714.49",N A MOVING SERVICES LTD,Heavy Baggage
FCO,FCO,02/12/2014,"4,881,414","27,647.11",BLITZ COMMUNICATIONS LTD,Programme Spend (Oracle Projects Control Account)
FCO,FCO,02/12/2014,"4,881,462","98,590.16",BOUYGUES CONSTRUCTION NIGERIA LIMITED,Assets Under Construction (Oracle PA Control Account)
FCO,FCO,02/12/2014,"4,881,335","177,320.00",CAPGEMINI UK PLC,Estates Management Services
FCO,FCO,02/12/2014,"4,881,371","26,703.00",HAYS SPECIALIST RECRUITMENT LTD,Specialist Contractors
FCO,FCO,02/12/2014,"4,868,196","37,464.00",WTG TECHNOLOGIES LIMITED,Assets Under Construction (Oracle PA Control Account)
FCO,FCO,03/12/2014,"4,882,565","31,508.56","AON HEWITT CONSULTING SHANGHAI CO., LTD. BEIJING BRANCH",Legal Consultancy
FCO,FCO,03/12/2014,"4,879,416","30,323.75",BEIJING ZHONGQIAO INTERNATIONAL TRAVEL LTD,Programme Spend (Oracle Projects Control Account)
FCO,FCO,03/12/2014,"4,879,800","32,657.88",CONTROL RISKS SERVICES WEST AFRICA LIMITED,Local Guards
FCO,FCO,03/12/2014,"4,879,815","32,657.88",CONTROL RISKS SERVICES WEST AFRICA LIMITED,Local Guards
FCO,FCO,03/12/2014,"4,879,874","32,657.88",CONTROL RISKS SERVICES WEST AFRICA LIMITED,Local Guards
FCO,FCO,03/12/2014,"4,882,945","752,043.00",FCO SERVICES,Assets Under Construction (Oracle PA Control Account)
FCO,FCO,03/12/2014,"4,865,671","300,128.60",FCO SERVICES,Assets Under Construction (Oracle PA Control Account)
FCO,FCO,03/12/2014,"4,865,674","290,133.20",FCO SERVICES,Assets Under Construction (Oracle PA Control Account)
FCO,FCO,03/12/2014,"4,865,670","280,808.50",FCO SERVICES,Assets Under Construction (Oracle PA Control Account)
FCO,FCO,03/12/2014,"4,865,672","158,252.00",FCO SERVICES,Assets Under Construction (Oracle PA Control Account)
FCO,FCO,03/12/2014,"4,867,000","-51,350.28",FCO SERVICES,Assets Under Construction (Oracle PA Control Account)
FCO,FCO,03/12/2014,"4,866,981","-166,764.70",FCO SERVICES,Assets Under Construction (Oracle PA Control Account)
FCO,FCO,03/12/2014,"4,876,534","40,522.08",HOTELLINE FOR TOURISTIC INVESTMENT LTD,
FCO,FCO,03/12/2014,"4,871,951","39,652.42",HOTELLINE FOR TOURISTIC INVESTMENT LTD,
FCO,FCO,03/12/2014,"4,882,699","25,406.11",SCHWINN WAREHOUSING & STORAGE,Rental Payments - non residential
FCO,FCO,03/12/2014,"4,880,703","31,840.56",UM 02490,Recharge Suspense Account (Oracle PA Control Account)
FCO,FCO,04/12/2014,"4,881,617","38,616.68",AVTOBIOGRATHIYA ZAO,Assets Under Construction (Oracle PA Control Account)
FCO,FCO,05/12/2014,"4,868,547","108,118.10",ALBANY ASSOCIATES,Programme Spend (Oracle Projects Control Account)
FCO,FCO,05/12/2014,"4,886,246","41,067.61",GLOBAL PARTNERS GOVERNANCE PRACTICE LTD,Programme Spend (Oracle Projects Control Account)
FCO,FCO,05/12/2014,"4,886,714","26,934.50","GUANGZHOU INSTITUTE OF ENERGY CONVERSION, CHINESE ACADEMY OF SCIENCE",Programme Spend (Oracle Projects Control Account)
FCO,FCO,05/12/2014,"4,886,151","50,180.54",INTERNATIONAL CENTRE FOR MIGRATION POLICY DEVELOPMENT,Programme Spend (Oracle Projects Control Account)
FCO,FCO,05/12/2014,"4,885,476","106,334.60",INTERSERVE FM LTD,Construction Project more than £10k
FCO,FCO,05/12/2014,"4,885,523","43,043.79",INTERSERVE FM LTD,Construction Project more than £10k
FCO,FCO,05/12/2014,"4,885,940","42,380.99",INTERSERVE FM LTD,FM Interserve Works
FCO,FCO,05/12/2014,"4,885,587","36,917.20",INTERSERVE FM LTD,FM Interserve Works
FCO,FCO,05/12/2014,"4,885,643","456,030.80",JUAN GAVIRIA RESTREPO & CIA,Rental Payments - non residential
FCO,FCO,05/12/2014,"4,879,617","237,446.10",MSECURE LIMITED,Assets Under Construction (Oracle PA Control Account)
FCO,FCO,05/12/2014,"4,879,619","35,725.70",MSECURE LIMITED,Assets Under Construction (Oracle PA Control Account)
FCO,FCO,05/12/2014,"4,885,294","43,237.41",PILDAT,Programme Spend (Oracle Projects Control Account)
FCO,FCO,05/12/2014,"4,885,182","80,088.25",WOMEN EMPOWERMENT LITERACY AND DEVELOPMENT ORGANIZATION,Programme Spend (Oracle Projects Control Account)
FCO,FCO,08/12/2014,"4,867,468","172,355.00",GILBERT ASH LIMITED,Construction Project more than £10k
FCO,FCO,08/12/2014,"4,879,844","973,639.60",ISS FACILITY SERVICES LTD FCO OP - POE,
FCO,FCO,08/12/2014,"4,879,846","256,452.50",ISS FACILITY SERVICES LTD FCO OP - POE,
FCO,FCO,08/12/2014,"4,879,847","183,415.20",ISS FACILITY SERVICES LTD FCO OP - POE,
FCO,FCO,08/12/2014,"4,879,848","149,751.00",ISS FACILITY SERVICES LTD FCO OP - POE,
FCO,FCO,08/12/2014,"4,879,857","141,945.10",ISS FACILITY SERVICES LTD FCO OP - POE,
FCO,FCO,08/12/2014,"4,879,852","135,915.50",ISS FACILITY SERVICES LTD FCO OP - POE,
FCO,FCO,08/12/2014,"4,879,850","126,443.50",ISS FACILITY SERVICES LTD FCO OP - POE,
FCO,FCO,08/12/2014,"4,879,855","94,740.81",ISS FACILITY SERVICES LTD FCO OP - POE,
FCO,FCO,08/12/2014,"4,879,843","67,368.07",ISS FACILITY SERVICES LTD FCO OP - POE,
FCO,FCO,08/12/2014,"4,879,851","61,626.57",ISS FACILITY SERVICES LTD FCO OP - POE,
FCO,FCO,08/12/2014,"4,879,858","59,452.34",ISS FACILITY SERVICES LTD FCO OP - POE,
FCO,FCO,08/12/2014,"4,879,842","56,101.31",ISS FACILITY SERVICES LTD FCO OP - POE,
FCO,FCO,08/12/2014,"4,879,849","50,057.94",ISS FACILITY SERVICES LTD FCO OP - POE,
FCO,FCO,08/12/2014,"4,879,845","34,041.36",ISS FACILITY SERVICES LTD FCO OP - POE,
FCO,FCO,08/12/2014,"4,879,839","28,731.14",ISS FACILITY SERVICES LTD FCO OP - POE,
FCO,FCO,08/12/2014,"4,866,565","199,072.30",KELLOGG BROWN AND ROOT,Estates Management Services
FCO,FCO,08/12/2014,"4,887,100","52,475.07",N A MOVING SERVICES LTD,Heavy Baggage
FCO,FCO,08/12/2014,"4,878,586","42,987.61",UTRIKESDEPARTEMENTET,
FCO,FCO,09/12/2014,"4,888,948","187,478.90",AKTIS STRATEGY,Programme Spend (Oracle Projects Control Account)
FCO,FCO,09/12/2014,"4,888,947","-100,000.00",AKTIS STRATEGY,Programme Spend (Oracle Projects Control Account)
FCO,FCO,09/12/2014,"4,865,685","123,260.50",CROWN AGENTS FINANCIAL SERVICES LTD,Programme Spend (Oracle Projects Control Account)
FCO,FCO,09/12/2014,"4,889,140","40,796.95",QUATRO CREATIONS CC,Assets Under Construction (Oracle PA Control Account)
FCO,FCO,09/12/2014,"4,889,266","30,000.00",REPRIEVE,Human Rights : Prisoners
FCO,FCO,09/12/2014,"4,888,977","59,182.94",THE BRITISH RUSSIAN CENTRE AND THE BRITISH EAST WEST CENTER,Programme Spend (Oracle Projects Control Account)
FCO,FCO,09/12/2014,"4,888,489","34,242.68",VERIFICATION TRAINING AND INFORMATION CENTRE,Programme Spend (Oracle Projects Control Account)
FCO,FCO,10/12/2014,"4,879,876","26,542.71",AGENCIA CONSULTING LTD,Programme Spend (Oracle Projects Control Account)
FCO,FCO,10/12/2014,"4,884,652","27,513.92",COGENT ELECTRICAL SERVICES LTD FORM WES,Assets Under Construction (Oracle PA Control Account)
FCO,FCO,10/12/2014,"4,889,949","40,823.72",Elixir Solutions,Programme Spend (Oracle Projects Control Account)
FCO,FCO,10/12/2014,"4,884,074","102,000.00",EXTRASPACE SOLUTIONS,Construction Project more than £10k
FCO,FCO,10/12/2014,"4,888,794","200,000.00",FCO SERVICES,Assets Under Construction (Oracle PA Control Account)
FCO,FCO,10/12/2014,"4,888,797","166,529.10",FCO SERVICES,Assets Under Construction (Oracle PA Control Account)
FCO,FCO,10/12/2014,"4,889,983","39,870.47",HARIS ENTERPRISES PVT LTD,Local Guards
FCO,FCO,10/12/2014,"4,884,499","59,162.00",INTERNATIONAL ENERGY AGENCY,Programme Spend (Oracle Projects Control Account)
FCO,FCO,10/12/2014,"4,889,272","129,674.60",M INTEGRATED SOLUTIONS,Inward visits to the UK and UK Conferences
FCO,FCO,10/12/2014,"4,884,604","49,108.00",MASON CHANGE COMMUNICATIONS,Programme Spend (Oracle Projects Control Account)
FCO,FCO,10/12/2014,"4,891,745","33,019.99",N A MOVING SERVICES LTD,Heavy Baggage
FCO,FCO,10/12/2014,"4,890,662","130,233.00",ORGANISATION FOR ECONOMIC CO OPERATION AND DEVELOPMENT OECD,Programme Spend (Oracle Projects Control Account)
FCO,FCO,10/12/2014,"4,890,623","30,881.88",SUPPLY PLUS,Estates - Other Machinery and Equipment
FCO,FCO,10/12/2014,"4,889,942","36,392.37",SYNERGY DOWNSTREAM SOLUTIONS PTE LTD,Programme Spend (Oracle Projects Control Account)
FCO,FCO,11/12/2014,"4,891,900","207,130.90",AEGIS DEFENCE SERVICES LTD,UK Mobile Guarding Contract overseas
FCO,FCO,11/12/2014,"4,887,277","72,232.37",CCAMLR,Programme Spend (Oracle Projects Control Account)
FCO,FCO,11/12/2014,"4,870,480","54,042.37",INTERSERVE FM LTD,
FCO,FCO,11/12/2014,"4,870,435","25,586.45",INTERSERVE FM LTD,
FCO,FCO,11/12/2014,"4,891,798","41,495.96",N A MOVING SERVICES LTD,Heavy Baggage
FCO,FCO,11/12/2014,"4,872,032","42,733.69",TOLO TV INTERNATIONAL,Programme Spend (Oracle Projects Control Account)
FCO,FCO,11/12/2014,"4,888,195","113,539.60",WELFARE ASSOCIATION FOR DEVELOPMENT OF AFGHANISTAN (WADAN),Programme Spend (Oracle Projects Control Account)
FCO,FCO,12/12/2014,"4,893,311","115,418.30",ADAM SMITH INTERNATIONAL,Programme Spend (Oracle Projects Control Account)
FCO,FCO,12/12/2014,"4,893,315","33,205.78",ADAM SMITH INTERNATIONAL,Programme Spend (Oracle Projects Control Account)
FCO,FCO,12/12/2014,"4,890,724","318,079.70",ARK FZC,Programme Spend (Oracle Projects Control Account)
FCO,FCO,12/12/2014,"4,892,848","48,386.69",DECOVISION,Rental Payments - residential
FCO,FCO,12/12/2014,"4,891,859","331,445.90",G4S SECURE SOLUTIONS (UK),Manned Guarding Services
FCO,FCO,12/12/2014,"4,868,408","-37,922.54",G4S SECURE SOLUTIONS (UK),Manned Guarding Services
FCO,FCO,12/12/2014,"4,887,232","30,161.12",MEDITERRANEAN AVIATION OPERATIONS CO LTD,Programme Spend (Oracle Projects Control Account)
FCO,FCO,12/12/2014,"4,887,228","28,573.70",MEDITERRANEAN AVIATION OPERATIONS CO LTD,Programme Spend (Oracle Projects Control Account)
FCO,FCO,15/12/2014,"4,894,752","39,703.86",ADAM SMITH INTERNATIONAL,Programme Spend (Oracle Projects Control Account)
FCO,FCO,15/12/2014,"4,895,694","53,600.00",AGILE BYTE LIMITED,Assets Under Construction (Oracle PA Control Account)
FCO,FCO,15/12/2014,"4,894,706","99,409.70",BAE SYSTEMS APPLIED INTELLIGENCE LIMITED,Information Systems Maintenance
FCO,FCO,15/12/2014,"4,893,555","31,592.33",BRITCHAM BUSINESS SERVICES,UKTI HQ Allocation- DSO
FCO,FCO,15/12/2014,"4,892,278","40,728.17",BRITISH CHAMBER OF COMMERCE,UKTI HQ Allocation- DSO
FCO,FCO,15/12/2014,"4,892,275","25,267.83",BRITISH CHAMBER OF COMMERCE,UKTI HQ Allocation- DSO
FCO,FCO,15/12/2014,"4,895,276","153,969.00",CONTROL RISKS GROUP,UK Mobile Guarding Contract overseas
FCO,FCO,15/12/2014,"4,895,443","26,208.89",FELTECH ELECTRONICS LTD,Computer Bureau Services
FCO,FCO,15/12/2014,"4,895,431","850,835.70",GARDA WORLD LTD,UK Mobile Guarding Contract overseas
FCO,FCO,15/12/2014,"4,895,688","139,987.90",GILBERT ASH LIMITED,Construction Project more than £10k
FCO,FCO,15/12/2014,"4,895,418","117,372.60",HEALIX INTERNATIONAL LTD,Fco Healthcare Scheme
FCO,FCO,15/12/2014,"4,895,626","26,858.13",MEDIA DIVERSITY INSTITUTE,Programme Spend (Oracle Projects Control Account)
FCO,FCO,15/12/2014,"4,892,845","34,249.89",PRI REP OFFICE CENTRAL ASIA,Programme Spend (Oracle Projects Control Account)
FCO,FCO,15/12/2014,"4,895,686","45,200.11",PROJECT HOUGOUMONT LTD,Programme Spend (Oracle Projects Control Account)
FCO,FCO,15/12/2014,"4,895,643","73,077.60",S MACNEILLIE & SON LTD,Assets Under Construction (Oracle PA Control Account)
FCO,FCO,15/12/2014,"4,891,610","26,574.55",SECURITAS SAC,Local Guards
FCO,FCO,15/12/2014,"4,895,519","29,012.00",SOCIAL PIONEERS,Programme Spend (Oracle Projects Control Account)
FCO,FCO,15/12/2014,"4,894,292","48,202.86",STARTJG HONG KONG LIMITED,UKTI HQ Allocation- Marketing
FCO,FCO,15/12/2014,"4,894,668","44,978.29",UNIVERSITY OF ESSEX,Programme Spend (Oracle Projects Control Account)
FCO,FCO,16/12/2014,"4,894,756","25,037.37",BRYTYJSKO POLSKIE USLUGI SP Z O O,UKTI HQ Allocation- DSO
FCO,FCO,16/12/2014,"4,894,750","60,280.40",CENTRE FOR HUMANITARIAN DIALOGUE,Programme Spend (Oracle Projects Control Account)
FCO,FCO,16/12/2014,"4,881,385","99,813.00",COMPUTACENTER UK LTD,IT/IS Consultancy
FCO,FCO,16/12/2014,"4,894,745","804,397.00",DAI EUROPE LIMITED,Programme Spend (Oracle Projects Control Account)
FCO,FCO,16/12/2014,"4,894,411","464,376.00",DEENSIDE LTD,Programme Spend (Oracle Projects Control Account)
FCO,FCO,16/12/2014,"4,896,603","44,964.51",DIPLOMATIC MISSION SUPPLIES LTD,"Purchase of Furniture, Fittings and Domestic Appliances"
FCO,FCO,16/12/2014,"4,893,356","122,265.20",INTERGOVERNMENTAL AUTHORITY ON DEVELOPMENT,Programme Spend (Oracle Projects Control Account)
FCO,FCO,16/12/2014,"4,893,368","108,464.20",INTERGOVERNMENTAL AUTHORITY ON DEVELOPMENT,Programme Spend (Oracle Projects Control Account)
FCO,FCO,16/12/2014,"4,897,009","44,112.00",MACE INTERNATIONAL UK LIMITED,Assets Under Construction (Oracle PA Control Account)
FCO,FCO,16/12/2014,"4,896,571","33,154.21",TOYOTA EAST AFRICA LTD,Assets Under Construction (Oracle PA Control Account)
FCO,FCO,16/12/2014,"4,896,572","33,154.21",TOYOTA EAST AFRICA LTD,Assets Under Construction (Oracle PA Control Account)
FCO,FCO,16/12/2014,"4,887,332","25,496.82",WORLD VISION DEUTSHLAND E V,Programme Spend (Oracle Projects Control Account)
FCO,FCO,17/12/2014,"4,898,938","233,640.00",BAE SYSTEMS APPLIED INTELLIGENCE LIMITED,Information Systems Maintenance
FCO,FCO,17/12/2014,"4,898,951","95,625.00",BAE SYSTEMS APPLIED INTELLIGENCE LIMITED,Temporary Staff (Admin and Clerical Only)
FCO,FCO,17/12/2014,"4,897,892","34,773.34",CHARKHA,Programme Spend (Oracle Projects Control Account)
FCO,FCO,17/12/2014,"4,870,733","32,024.55",CONTROL RISKS SERVICES WEST AFRICA LIMITED,Local Guards
FCO,FCO,17/12/2014,"4,893,379","31,770.75",CONTROL RISKS SERVICES WEST AFRICA LIMITED,Local Guards
FCO,FCO,17/12/2014,"4,894,230","95,389.51",DIPLOMAT FREIGHT SERVICES LTD(DFS),Programme Spend (Oracle Projects Control Account)
FCO,FCO,17/12/2014,"4,898,677","27,058.35",DX NETWORK SERVICES,Postal Services
FCO,FCO,17/12/2014,"4,896,756","1,445,833.00",FCO SERVICES,Specialist Contractors
FCO,FCO,17/12/2014,"4,873,458","201,762.80",FCO SERVICES,IT/IS Consultancy
FCO,FCO,17/12/2014,"4,898,031","75,220.00",FCO SERVICES,Assets Under Construction (Oracle PA Control Account)
FCO,FCO,17/12/2014,"4,898,541","60,628.12",FCO SERVICES,Assets Under Construction (Oracle PA Control Account)
FCO,FCO,17/12/2014,"4,896,749","60,493.00",FCO SERVICES,Assets Under Construction (Oracle PA Control Account)
FCO,FCO,17/12/2014,"4,895,638","59,066.48",FCO SERVICES,Assets Under Construction (Oracle PA Control Account)
FCO,FCO,17/12/2014,"4,898,536","52,738.00",FCO SERVICES,Assets Under Construction (Oracle PA Control Account)
FCO,FCO,17/12/2014,"4,898,534","49,346.44",FCO SERVICES,Assets Under Construction (Oracle PA Control Account)
FCO,FCO,17/12/2014,"4,895,632","43,537.00",FCO SERVICES,Assets Under Construction (Oracle PA Control Account)
FCO,FCO,17/12/2014,"4,895,633","30,432.00",FCO SERVICES,Assets Under Construction (Oracle PA Control Account)
FCO,FCO,17/12/2014,"4,895,634","27,320.00",FCO SERVICES,Assets Under Construction (Oracle PA Control Account)
FCO,FCO,17/12/2014,"4,895,631","26,881.00",FCO SERVICES,Assets Under Construction (Oracle PA Control Account)
FCO,FCO,17/12/2014,"4,895,635","25,820.00",FCO SERVICES,Assets Under Construction (Oracle PA Control Account)
FCO,FCO,17/12/2014,"4,896,028","38,645.01",HOTELLINE FOR TOURISTIC INVESTMENT LTD,
FCO,FCO,17/12/2014,"4,896,336","54,402.00",INTERSERVE FM LTD,
FCO,FCO,17/12/2014,"4,896,405","613,408.50",ISS FACILITY SERVICES LTD FCO OP,
FCO,FCO,17/12/2014,"4,896,365","98,704.11",ISS FACILITY SERVICES LTD FCO OP,
FCO,FCO,17/12/2014,"4,896,358","85,268.32",ISS FACILITY SERVICES LTD FCO OP,
FCO,FCO,17/12/2014,"4,896,352","60,593.00",ISS FACILITY SERVICES LTD FCO OP,
FCO,FCO,17/12/2014,"4,896,347","58,309.13",ISS FACILITY SERVICES LTD FCO OP,
FCO,FCO,17/12/2014,"4,896,407","46,122.88",ISS FACILITY SERVICES LTD FCO OP,FM Interserve BES Maintenance
FCO,FCO,17/12/2014,"4,896,403","44,051.64",ISS FACILITY SERVICES LTD FCO OP,
FCO,FCO,17/12/2014,"4,896,366","43,880.04",ISS FACILITY SERVICES LTD FCO OP,
FCO,FCO,17/12/2014,"4,896,359","40,072.73",ISS FACILITY SERVICES LTD FCO OP,
FCO,FCO,17/12/2014,"4,896,372","32,744.27",ISS FACILITY SERVICES LTD FCO OP,
FCO,FCO,17/12/2014,"4,896,356","32,392.75",ISS FACILITY SERVICES LTD FCO OP,
FCO,FCO,17/12/2014,"4,896,364","30,269.33",ISS FACILITY SERVICES LTD FCO OP,
FCO,FCO,17/12/2014,"4,896,408","28,038.28",ISS FACILITY SERVICES LTD FCO OP,FM Interserve BES Maintenance
FCO,FCO,17/12/2014,"4,890,767","1,763,755.00",MACE LIMITED,Assets Under Construction (Oracle PA Control Account)
FCO,FCO,17/12/2014,"4,898,090","67,835.00",MASON CHANGE COMMUNICATIONS,Programme Spend (Oracle Projects Control Account)
FCO,FCO,17/12/2014,"4,896,546","97,876.60",SCOTTISH POLICE SERVICES AUTHORITY,Programme Spend (Oracle Projects Control Account)
FCO,FCO,17/12/2014,"4,895,466","61,651.70",WTG TECHNOLOGIES LIMITED,Assets Under Construction (Oracle PA Control Account)
FCO,FCO,18/12/2014,"4,898,907","307,121.30",BACTEC INTERNATIONAL LTD,Programme Spend (Oracle Projects Control Account)
FCO,FCO,18/12/2014,"4,900,371","51,280.62",CONTROL RISKS GROUP,Local Guards
FCO,FCO,18/12/2014,"4,899,889","25,426.02",K INTERNATIONAL LTD,Programme Spend (Oracle Projects Control Account)
FCO,FCO,18/12/2014,"4,896,589","119,093.20",KELLOGG BROWN AND ROOT,Estates Management Services
FCO,FCO,18/12/2014,"4,899,747","52,244.52",LANGUAGE SERVICES DIRECT,Language Tuition: Essential
FCO,FCO,18/12/2014,"4,900,428","36,093.00",MARSH UK LTD,Programme Spend (Oracle Projects Control Account)
FCO,FCO,18/12/2014,"4,896,764","500,000.00",MERCY CORPS,Programme Spend (Oracle Projects Control Account)
FCO,FCO,18/12/2014,"4,900,317","31,955.32",SUPPLY PLUS,Assets Under Construction (Oracle PA Control Account)
FCO,FCO,19/12/2014,"4,901,448","32,455.20",AEGIS DEFENCE SERVICES LTD,Local Guards
FCO,FCO,19/12/2014,"4,895,874","31,438.85",AL ASMAKH REAL ESTATE DEVELOPMENT COMPANY WLL,Rental Payments - residential
FCO,FCO,19/12/2014,"4,887,157","708,719.00",COMPUTACENTER UK LTD,Estates Management Services
FCO,FCO,19/12/2014,"4,866,982","186,580.10",COMPUTACENTER UK LTD,Recruitment - Gen And Training
FCO,FCO,19/12/2014,"4,901,752","341,763.20",CROWN AGENTS FINANCIAL SERVICES LTD,Programme Spend (Oracle Projects Control Account)
FCO,FCO,19/12/2014,"4,886,153","363,348.40",HTM DESIGN AND CONSULTANT CO LTD,
FCO,FCO,19/12/2014,"4,901,795","84,094.13",N A MOVING SERVICES LTD,Heavy Baggage
FCO,FCO,19/12/2014,"4,901,782","37,257.81",N A MOVING SERVICES LTD,Heavy Baggage
FCO,FCO,19/12/2014,"4,889,127","46,570.60",RANGER PROTECTION AND SECURITY COMPANY LTD,Local Guards
FCO,FCO,19/12/2014,"4,902,428","171,723.00",STRENGTHENING PARTICIPATORY ORGANISATION,Programme Spend (Oracle Projects Control Account)
FCO,FCO,19/12/2014,"4,901,656","31,785.00",UNIVERSITY OF BRISTOL,Programme Spend (Oracle Projects Control Account)
FCO,FCO,22/12/2014,"4,903,817","225,072.90",AEGIS DEFENCE SERVICES LTD,UK Mobile Guarding Contract overseas
FCO,FCO,22/12/2014,"4,900,120","57,571.13",AKTIS STRATEGY,Programme Spend (Oracle Projects Control Account)
FCO,FCO,22/12/2014,"4,904,912","28,036.33",BEMIL NIGERIA LIMITED,Local Guards
FCO,FCO,22/12/2014,"4,904,925","27,692.88",BEMIL NIGERIA LIMITED,Local Guards
FCO,FCO,22/12/2014,"4,903,189","26,496.69",CARE INTERNATIONAL UK,Programme Spend (Oracle Projects Control Account)
FCO,FCO,22/12/2014,"4,903,228","36,240.00",CENTRAL HALL WESTMINSTER,Inward visits to the UK and UK Conferences
FCO,FCO,22/12/2014,"4,903,164","110,314.00",DAI EUROPE LIMITED,Programme Spend (Oracle Projects Control Account)
FCO,FCO,22/12/2014,"4,903,862","73,166.11",INSTITUTE FOR WAR AND PEACE REPORTING IWPR,Programme Spend (Oracle Projects Control Account)
FCO,FCO,22/12/2014,"4,898,952","106,623.10",LANGUAGE SERVICES DIRECT,Language Tuition: Essential
FCO,FCO,22/12/2014,"4,902,894","194,407.10",LONDON ENERGY,Electricity Non-Residential
FCO,FCO,22/12/2014,"4,902,844","30,931.67",LONDON SCHOOL OF ECONOMICS AND POLITICAL SCIENCE,Specialist Training (Devolved)
FCO,FCO,22/12/2014,"4,902,945","90,000.00",M INTEGRATED SOLUTIONS,Selling Into Wider Markets Expenditure
FCO,FCO,22/12/2014,"4,898,393","72,862.76",N A MOVING SERVICES LTD,
FCO,FCO,22/12/2014,"4,903,796","62,731.67",QUINTESSENTIALLY LIFESTYLE UK LTD,Programme Spend (Oracle Projects Control Account)
FCO,FCO,22/12/2014,"4,903,795","53,062.83",REUTERS FOUNDATION,Programme Spend (Oracle Projects Control Account)
FCO,FCO,22/12/2014,"4,903,840","29,920.00",RICARDO AEA LTD,Programme Spend (Oracle Projects Control Account)
FCO,FCO,22/12/2014,"4,902,950","73,104.60",S MACNEILLIE & SON LTD,Assets Under Construction (Oracle PA Control Account)
FCO,FCO,22/12/2014,"4,899,015","227,269.40",STRUCTURE TONE SOUTHWEST INC,Assets Under Construction (Oracle PA Control Account)
FCO,FCO,23/12/2014,"4,904,924","104,116.70",ABROTEA BULGARIA AD,Rental Payments - non residential
FCO,FCO,23/12/2014,"4,904,874","108,537.70",AFRICAN SKIES LTD,Local Guards
FCO,FCO,23/12/2014,"4,904,873","105,036.40",AFRICAN SKIES LTD,Local Guards
FCO,FCO,23/12/2014,"4,905,797","124,748.00",ASSOCIATION OF MIDDLE EAST STUDIES,Programme Spend (Oracle Projects Control Account)
FCO,FCO,23/12/2014,"4,906,215","32,200.75",BCCT THE BRITISH CHAMBER OF COMMERCE IN TURKEY,UKTI HQ Allocation- DSO
FCO,FCO,23/12/2014,"4,906,217","28,085.83",BCCT THE BRITISH CHAMBER OF COMMERCE IN TURKEY,UKTI HQ Allocation- DSO
FCO,FCO,23/12/2014,"4,906,212","28,819.70",BIZZ DANISMANLIK REKLAMCILIK VE ILETISIM HIZMETLERI LTD STI,UKTI HQ Allocation- Marketing
FCO,FCO,23/12/2014,"4,904,847","41,997.58",BRIGHT HORIZONS FAMILY SOLUTION LTD,FCO KCS Nursery
FCO,FCO,23/12/2014,"4,904,848","41,997.58",BRIGHT HORIZONS FAMILY SOLUTION LTD,FCO KCS Nursery
FCO,FCO,23/12/2014,"4,903,226","336,090.00",COMMISSION FOR JUSTICE AND ACCOUNTABILITY,Programme Spend (Oracle Projects Control Account)
FCO,FCO,23/12/2014,"4,904,771","49,368.00",CROWN AGENTS BANK,Programme Spend (Oracle Projects Control Account)
FCO,FCO,23/12/2014,"4,903,828","51,750.00",INTERNATIONAL CENTRE FOR TRADE AND SUSTAINABLE DEVELOPMENT,Programme Spend (Oracle Projects Control Account)
FCO,FCO,23/12/2014,"4,904,469","552,407.00",INTERSERVE FM LTD,
FCO,FCO,23/12/2014,"4,904,367","60,323.45",INTERSERVE FM LTD,
FCO,FCO,23/12/2014,"4,904,453","57,180.86",INTERSERVE FM LTD,FM Interserve Works
FCO,FCO,23/12/2014,"4,904,279","46,447.05",INTERSERVE FM LTD,
FCO,FCO,23/12/2014,"4,904,375","30,529.81",INTERSERVE FM LTD,
FCO,FCO,23/12/2014,"4,904,373","26,633.96",INTERSERVE FM LTD,
FCO,FCO,23/12/2014,"4,904,324","26,240.51",INTERSERVE FM LTD,
FCO,FCO,23/12/2014,"4,904,211","234,113.20",ISS FACILITY SERVICES LTD FCO OP - POE,
FCO,FCO,23/12/2014,"4,904,213","218,857.20",ISS FACILITY SERVICES LTD FCO OP - POE,
FCO,FCO,23/12/2014,"4,904,222","192,263.70",ISS FACILITY SERVICES LTD FCO OP - POE,
FCO,FCO,23/12/2014,"4,904,214","189,597.60",ISS FACILITY SERVICES LTD FCO OP - POE,
FCO,FCO,23/12/2014,"4,904,210","154,892.30",ISS FACILITY SERVICES LTD FCO OP - POE,
FCO,FCO,23/12/2014,"4,904,215","103,644.30",ISS FACILITY SERVICES LTD FCO OP - POE,
FCO,FCO,23/12/2014,"4,904,226","58,904.93",ISS FACILITY SERVICES LTD FCO OP - POE,
FCO,FCO,23/12/2014,"4,904,209","54,970.52",ISS FACILITY SERVICES LTD FCO OP - POE,
FCO,FCO,23/12/2014,"4,904,225","48,367.89",ISS FACILITY SERVICES LTD FCO OP - POE,
FCO,FCO,23/12/2014,"4,904,218","43,624.60",ISS FACILITY SERVICES LTD FCO OP - POE,
FCO,FCO,23/12/2014,"4,904,219","42,316.77",ISS FACILITY SERVICES LTD FCO OP - POE,
FCO,FCO,23/12/2014,"4,904,223","29,991.84",ISS FACILITY SERVICES LTD FCO OP - POE,
FCO,FCO,23/12/2014,"4,904,212","28,905.96",ISS FACILITY SERVICES LTD FCO OP - POE,
FCO,FCO,23/12/2014,"4,904,217","25,692.09",ISS FACILITY SERVICES LTD FCO OP - POE,
FCO,FCO,23/12/2014,"4,868,183","53,181.42",N A MOVING SERVICES LTD,Heavy Baggage
FCO,FCO,23/12/2014,"4,904,811","134,692.10",SKA INTERNATIONAL GROUP,Property Maintenance Overseas Non Residential
FCO,FCO,23/12/2014,"4,904,908","60,664.77",SKA INTERNATIONAL GROUP,Property Maintenance Overseas Non Residential
FCO,FCO,23/12/2014,"4,905,048","550,000.00",TRANSPARENCY INTERNATIONAL,Programme Spend (Oracle Projects Control Account)
FCO,FCO,24/12/2014,"4,905,946","75,070.30",CAPGEMINI UK PLC,Information Systems Maintenance
FCO,FCO,24/12/2014,"4,903,886","230,850.00",FCO SERVICES,Air Freight Dip Bags - Freight & Clearance Charges
FCO,FCO,24/12/2014,"4,903,899","205,567.00",FCO SERVICES,Postal Services
FCO,FCO,24/12/2014,"4,903,199","149,954.40",FCO SERVICES,Misc Security Payments
FCO,FCO,24/12/2014,"4,903,898","122,472.00",FCO SERVICES,Postal Services
FCO,FCO,24/12/2014,"4,903,885","121,036.30",FCO SERVICES,Air Freight Dip Bags - Freight & Clearance Charges
FCO,FCO,24/12/2014,"4,903,888","94,716.00",FCO SERVICES,Air Freight Dip Bags - Freight & Clearance Charges
FCO,FCO,24/12/2014,"4,903,220","88,207.00",FCO SERVICES,Unscheduled repairs to building infrastructure
FCO,FCO,24/12/2014,"4,903,824","79,344.00",FCO SERVICES,Energy Saving Measures
FCO,FCO,24/12/2014,"4,903,212","68,437.00",FCO SERVICES,Information Systems Maintenance
FCO,FCO,24/12/2014,"4,903,922","60,637.97",FCO SERVICES,Construction Project more than £10k
FCO,FCO,24/12/2014,"4,903,822","-29,680.94",FCO SERVICES,Assets Under Construction (Oracle PA Control Account)
FCO,FCO,24/12/2014,"4,903,825","-79,344.00",FCO SERVICES,Energy Saving Measures
FCO,FCO,24/12/2014,"4,903,821","-89,400.91",FCO SERVICES,Assets Under Construction (Oracle PA Control Account)
FCO,FCO,24/12/2014,"4,898,694","62,780.97",JOHN SMITH MEMORIAL TRUST,Programme Spend (Oracle Projects Control Account)
FCO,FCO,24/12/2014,"4,905,845","31,859.15",UNIVERSITY OF LONDON,Programme Spend (Oracle Projects Control Account)
FCO,FCO,24/12/2014,"4,901,661","42,998.70",UNIVERSITY OF MELBOURNE,Programme Spend (Oracle Projects Control Account)
FCO,FCO,24/12/2014,"4,906,163","152,643.70",VODAFONE LTD CABLE AND WIRELESS UK,Information Systems Implementation
FCO,FCO,29/12/2014,"4,907,790","518,872.10",ARTEOS GMBH,
FCO,FCO,29/12/2014,"4,907,791","497,919.00",ARTEOS GMBH,
FCO,FCO,29/12/2014,"4,903,837","50,000.00",CAMBRIDGE CONSULTANTS,Assets Under Construction (Oracle PA Control Account)
FCO,FCO,29/12/2014,"4,904,287","54,470.64",INTERSERVE FM LTD,
FCO,FCO,29/12/2014,"4,904,253","25,956.79",INTERSERVE FM LTD,
FCO,FCO,29/12/2014,"4,904,295","25,005.02",INTERSERVE FM LTD,
FCO,FCO,29/12/2014,"4,907,060","81,273.00",MERCY CORPS,Programme Spend (Oracle Projects Control Account)
FCO,FCO,29/12/2014,"4,906,925","25,000.00",PAUL TUCKER,Programme Spend (Oracle Projects Control Account)
FCO,FCO,29/12/2014,"4,907,062","73,077.60",S MACNEILLIE & SON LTD,Assets Under Construction (Oracle PA Control Account)
FCO,FCO,29/12/2014,"4,906,834","50,000.00",SIPAHILER TURIZM A.S.,UKTI HQ Allocation- Marketing
FCO,FCO,29/12/2014,"4,868,303","42,031.00",TNT EXPRESS,Specialist Contractors
FCO,FCO,29/12/2014,"4,868,304","42,031.00",TNT EXPRESS,Specialist Contractors
FCO,FCO,29/12/2014,"4,906,972","394,928.20",VODAFONE LTD CABLE AND WIRELESS UK,Telephone line and equipment rental charges
FCO,FCO,29/12/2014,"4,906,973","-394,333.50",VODAFONE LTD CABLE AND WIRELESS UK,Telephone line and equipment rental charges
FCO,FCO,30/12/2014,"4,907,783","86,216.58",ADYAN FOUNDATION,Programme Spend (Oracle Projects Control Account)
FCO,FCO,30/12/2014,"4,901,740","30,015.90",G4S SECURITY SERVICE DRC SPRL,Local Guards
FCO,FCO,30/12/2014,"4,901,743","30,015.90",G4S SECURITY SERVICE DRC SPRL,Local Guards
FCO,FCO,30/12/2014,"4,901,750","30,015.90",G4S SECURITY SERVICE DRC SPRL,Local Guards
FCO,FCO,30/12/2014,"4,907,771","29,400.00",PILGRIMS GROUP LTD,Programme Spend (Oracle Projects Control Account)
FCO,FCO,30/12/2014,"4,907,596","29,576.37",VODAFONE LTD CABLE AND WIRELESS UK,Telephone line and equipment rental charges
FCO,FCO,31/12/2014,"4,908,948","26,746.83",CM SOLUTIONS LTD,Programme Spend (Oracle Projects Control Account)
FCO,FCO,31/12/2014,"4,908,298","91,054.00",COMPUTACENTER UK LTD,Assets Under Construction (Oracle PA Control Account)
FCO,FCO,31/12/2014,"4,908,305","91,054.00",COMPUTACENTER UK LTD,Assets Under Construction (Oracle PA Control Account)
FCO,FCO,31/12/2014,"4,908,309","91,054.00",COMPUTACENTER UK LTD,Assets Under Construction (Oracle PA Control Account)
FCO,FCO,31/12/2014,"4,908,855","150,000.00",CROWN ESTATE COMMIS CASH A C,Rental Payments - non residential
FCO,FCO,31/12/2014,"4,908,471","106,250.00",CROWN ESTATE COMMIS CASH A C,Rental Payments - residential
FCO,FCO,31/12/2014,"4,908,354","981,643.30",G4S RISK MANAGEMENT LTD FORMALLY ARMOURGROUP SERVICES LTD,UK Guarding Contracts Overseas
FCO,FCO,31/12/2014,"4,908,365","600,523.80",G4S RISK MANAGEMENT LTD FORMALLY ARMOURGROUP SERVICES LTD,UK Guarding Contracts Overseas
FCO,FCO,31/12/2014,"4,908,415","29,725.00",GUAVA INTERNATIONAL LTD,Assets Under Construction (Oracle PA Control Account)
FCO,FCO,31/12/2014,"4,906,898","407,963.00",SIREN ASSOCIATES LTD,Programme Spend (Oracle Projects Control Account)
FCO,FCO,31/12/2014,"4,908,494","131,906.00",THE HALO TRUST,Programme Spend (Oracle Projects Control Account)
